fUST/lending_fUST_20250827
["ID","MTS","AMOUNT","RATE_DAILY","PERIOD"]
[381500955,1756238754071,-155.53050743,0.0002699,2]
[381500956,1756238757403,-493.62,0.0002699,2]
[381500957,1756238776425,-151.0,0.00026353,2]
[381500958,1756238779921,-155.84,0.00026353,2]
[381500959,1756238781752,-73.16,0.00026353,2]
[381500960,1756238781776,-96.11932914,0.00026989,2]
[381500961,1756238784774,-182.45,0.00026989,2]
[381500962,1756238787916,-21.43067086,0.00026989,2]
[381500963,1756238787943,-430.26932914,0.00026989,2]
[381500964,1756238792009,-69.73067086,0.00026989,2]
[381500965,1756238792033,-500.0,0.00026989,2]
[381500966,1756238792055,-421.74322422,0.00026989,2]
[381500967,1756238792689,866.3004422,0.000199,2]
[381500968,1756238792793,866.3004422,0.00021627,2]
[381500969,1756238792958,866.3004422,0.00023353,2]
[381500970,1756238793051,866.3004422,0.0002508,2]
[381500971,1756238793200,866.3004422,0.00026806,6]
[381500972,1756238795758,-78.25677578,0.00026989,2]
[381500973,1756238795781,-137.58322422,0.0002699,2]
[381500974,1756238797520,-583.66279418,0.0002699,2]
[381500975,1756238800197,-211.39331074,0.0002699,2]
[381500976,1756238802273,-247.83,0.0002699,2]
[381500977,1756238806157,-329.9,0.0002699,2]
[381500978,1756238808429,-451.87,0.0002699,2]
[381500979,1756238808495,319.1559141,0.0002618,2]
[381500980,1756238823622,-214.539989,0.000269,2]
[381500981,1756238826757,-168.95,0.000269,2]
[381500982,1756238829413,-467.95949257,0.000269,2]
[381500983,1756238832525,-64.35464361,0.000269,2]
[381500984,1756238832547,-300.0,0.00026989,2]
[381500985,1756238832567,-446.70365809,0.0002699,2]
[381500986,1756238835636,-26431.993852,0.0002699,2]
[381500987,1756238835656,-763.28122491,0.00027,2]
[381500988,1756238835677,-1039.2544625,0.0002779,2]
[381500989,1756238835696,-417.15472785,0.00028,10]
[381500990,1756238835716,-257.91717519,0.00028433,2]
[381500991,1756238835740,-866.3004422,0.00028533,10]
[381500992,1756238835760,-203.63740792,0.0002868,2]
[381500993,1756238835780,-168.53752178,0.00028699,97]
[381500994,1756238835799,-7130.62480883,0.000288,2]
[381500995,1756238835817,-673.69999716,0.000288,2]
[381500996,1756238835835,-240.42478967,0.00028873,5]
[381500997,1756238835853,-201.33106957,0.00028879,2]
[381500998,1756238835872,-591.92915229,0.00028879,2]
[381500999,1756238835891,-591.92915229,0.00028879,2]
[381501000,1756238835910,-591.92915229,0.00028879,2]
[381501001,1756238835929,-591.92915229,0.00028879,2]
[381501002,1756238835953,-591.92915229,0.00028879,2]
[381501003,1756238835973,-591.92915229,0.00028879,2]
[381501004,1756238835991,-591.92915229,0.00028879,2]
[381501005,1756238836013,-591.92915229,0.00028879,2]
[381501006,1756238836036,-591.92915229,0.00028879,2]
[381501007,1756238836058,-591.92915229,0.00028879,2]
[381501008,1756238836080,-591.92915229,0.00028879,2]
[381501009,1756238836102,-591.92915229,0.00028879,2]
[381501010,1756238836123,-591.92915229,0.00028879,2]
[381501011,1756238836145,-591.92915229,0.00028879,2]
[381501012,1756238836167,-591.92915229,0.00028879,2]
[381501013,1756238836188,-591.92915229,0.00028879,2]
[381501014,1756238836208,-591.92915229,0.00028879,2]
[381501015,1756238836230,-591.92915229,0.00028879,2]
[381501016,1756238836252,-591.92915229,0.00028879,2]
[381501017,1756238836273,-591.92915229,0.00028879,2]
[381501018,1756238836294,-591.92915229,0.00028879,2]
[381501019,1756238836315,-591.92915229,0.00028879,2]
[381501020,1756238836337,-255.99,0.0002888,3]
[381501021,1756238836357,-767.99,0.0002888,3]
[381501022,1756238836379,-37701.5131912,0.0002888,2]
[381501023,1756238836399,-1072.43215723,0.0002888,2]
[381501024,1756238836421,-29856.12119959,0.0002889,2]
[381501025,1756238837438,-356.87,0.000268,2]
[381501026,1756238841567,-230.15569764,0.000268,2]
[381501027,1756238843634,-174.34571015,0.000268,2]
[381501028,1756238845247,-3.16065013,0.000268,2]
[381501030,1756238912298,1810.76761984,0.00020992,2]
[381501033,1756238940007,-170.51934987,0.00027112,2]
[381501034,1756238942027,-156.96,0.00027112,2]
[381501035,1756238943960,-262.1,0.00027112,2]
[381501036,1756238948728,-315.01886859,0.00027112,2]
[381501037,1756238951255,-297.61056082,0.00027112,2]
[381501039,1756238953938,-168.95,0.00027112,2]
[381501040,1756238956212,389.432907,0.00013699,2]
[381501041,1756238956442,389.432907,0.00020187,2]
[381501042,1756238957740,-311.58,0.00026676,2]
[381501043,1756238959616,-77.852907,0.00026676,2]
[381501044,1756238959640,-322.147093,0.00027112,2]
[381501045,1756238961238,-168.95,0.00027112,2]
[381501046,1756238963472,-168.95,0.00027112,2]
[381501047,1756238965143,-1257.1105339,0.00027112,2]
[381501048,1756238968696,161.50886363,0.000199,2]
[381501049,1756238969081,531.53149013,0.000199,2]
[381501050,1756238969166,693.04035376,0.00021627,2]
[381501051,1756238969342,693.04035376,0.00023353,2]
[381501052,1756238969665,693.04035376,0.0002508,2]
[381501053,1756238969766,693.04035376,0.00026806,6]
[381501054,1756238972093,-365.29897267,0.00027112,2]
[381501055,1756238972403,-199.0,0.00027112,2]
[381501056,1756238981867,-169.59226389,0.00027112,2]
[381501057,1756238984460,-262.40773611,0.00027112,2]
[381501058,1756238986479,-160.0,0.00027112,2]
[381501059,1756238988505,-163.168837,0.00027112,2]
[381501060,1756238990630,-338.25078068,0.00027112,2]
[381501061,1756238993833,-204.48492441,0.00027112,2]
[381501062,1756238996282,-177.76549719,0.00027112,2]
[381501063,1756238997776,-153.91743907,0.00027112,2]
[381501064,1756238998980,5000.0,0.00027,3]
[381501065,1756239000290,-200.81191684,0.00027112,2]
[381501066,1756239000878,482.34244945,0.00025205,2]
[381501067,1756239001833,-156.96,0.00027112,2]
[381501068,1756239003613,-187.08944181,0.00027112,2]
[381501069,1756239005579,-199.0,0.00027112,2]
[381501070,1756239006924,5000.0,0.00027,3]
[381501071,1756239009413,-457.55238351,0.00027112,2]
[381501072,1756239014934,5000.0,0.00027,3]
[381501073,1756239022734,5000.0,0.00027,3]
[381501074,1756239030813,3440.65920404,0.00027,3]
[381501454,1756239038380,-1559.34079596,0.00027,3]
[381501456,1756239038391,-303.35238575,0.000271,2]
[381501458,1756239038402,-3263.72140374,0.00027112,2]
[381501460,1756239038412,-1106.999511,0.0002738,2]
[381501461,1756239038422,-160.418352,0.00027453,2]
[381501463,1756239038433,-1151.0,0.0002749,2]
[381501465,1756239038443,-300.0,0.00027491,2]
[381501467,1756239038453,-5000.0,0.00027492,2]
[381501469,1756239038463,-203.63740792,0.000279,2]
[381501470,1756239038472,-693.04035376,0.00028533,10]
[381501472,1756239038482,-1856.10952619,0.000288,2]
[381501475,1756239038492,-4753.74987256,0.000288,2]
[381501477,1756239038501,-596.93,0.0002888,10]
[381501479,1756239038511,-497.44,0.0002888,10]
[381501480,1756239038519,-30238.1524166,0.0002888,2]
[381501481,1756239038529,-2278.72939416,0.0002888,2]
[381501482,1756239038539,-500.0,0.00028889,2]
[381501483,1756239038548,-500.0,0.00028889,2]
[381501485,1756239038558,-500.0,0.00028889,2]
[381501487,1756239038567,-500.0,0.00028889,2]
[381501489,1756239038576,-500.0,0.00028889,2]
[381501491,1756239038587,-500.0,0.00028889,2]
[381501493,1756239038596,-500.0,0.00028889,2]
[381501495,1756239038606,-556.51603004,0.00028889,2]
[381501497,1756239038616,-500.0,0.00028889,2]
[381501498,1756239038625,-500.0,0.00028889,2]
[381501499,1756239038638,-500.0,0.00028889,2]
[381501501,1756239038648,-500.0,0.00028889,2]
[381501503,1756239038657,-500.0,0.00028889,2]
[381501505,1756239038667,-500.0,0.00028889,2]
[381501507,1756239038677,-500.0,0.00028889,2]
[381501509,1756239038687,-500.0,0.00028889,2]
[381501510,1756239038696,-500.0,0.00028889,2]
[381501512,1756239038707,-500.0,0.00028889,2]
[381501514,1756239038716,-500.0,0.00028889,2]
[381501516,1756239038726,-500.0,0.00028889,2]
[381501518,1756239038735,-500.0,0.00028889,2]
[381501520,1756239038745,-500.0,0.00028889,2]
[381501521,1756239038754,-500.0,0.00028889,2]
[381501523,1756239038764,-500.0,0.00028889,2]
[381501525,1756239038773,-500.0,0.00028889,2]
[381501527,1756239038783,-494.62613365,0.00028889,2]
[381501529,1756239038792,-500.0,0.00028889,2]
[381501531,1756239038801,-5039.69206943,0.0002889,2]
[381501533,1756239038811,-379.78823236,0.0002889,2]
[381501535,1756239038820,-91065.54678428,0.0002889,2]
[381501536,1756239038832,-9188.88709056,0.0002889,2]
[381501543,1756239039185,-239889.44492557,0.0002889,2]
[381501544,1756239039194,-2313.48,0.000289,7]
[381501545,1756239039204,-217.18350301,0.000289,7]
[381501546,1756239039213,-3104.05,0.000289,7]
[381501547,1756239039222,-160.0,0.000289,7]
[381501548,1756239039231,-160.0,0.000289,7]
[381501549,1756239039241,-15781.15750739,0.000289,7]
[381501550,1756239039452,5000.0,0.0002626,2]
[381501637,1756239041308,-49.83504683,0.000289,7]
[381501698,1756239043562,-23472.17744578,0.000289,7]
[381501700,1756239043573,-232.53539143,0.000289,7]
[381501701,1756239043582,-500.0,0.00028973,5]
[381501702,1756239043591,-500.0,0.00028973,5]
[381501703,1756239043602,-501.38178286,0.00028973,5]
[381501704,1756239043611,-151.47,0.00029252,15]
[381501706,1756239043621,-160.0,0.00029286,2]
[381501707,1756239043631,-160.0,0.000293,2]
[381501709,1756239043641,-160.0,0.000293,2]
[381501711,1756239043651,-376.39720582,0.000293,2]
[381501713,1756239043660,-160.0,0.00029378,2]
[381501714,1756239043670,-12704.43797926,0.0002941,2]
[381501715,1756239043679,-217.18350301,0.00029421,2]
[381501716,1756239043689,-500.0,0.00029521,5]
[381501718,1756239043699,-588.93873768,0.00029521,5]
[381501720,1756239043709,-263.005784,0.00029589,120]
[381501721,1756239043720,-420.0,0.00029705,2]
[381501722,1756239043730,-160.0,0.0003,10]
[381501723,1756239043740,-511.98,0.0003025,3]
[381501724,1756239043750,-693.04035376,0.00030259,13]
[381501725,1756239043760,-160.418352,0.00030878,2]
[381501726,1756239043770,-158.0,0.00031,120]
[381501727,1756239043780,-1856.10952612,0.00031168,2]
[381501728,1756239043790,-673.69999716,0.00031746,2]
[381501729,1756239043800,-500.0,0.00031941,2]
[381501730,1756239043809,-500.0,0.00031941,2]
[381501731,1756239043819,-500.0,0.00031941,2]
[381501732,1756239043828,-500.0,0.00031941,2]
[381501733,1756239043838,-500.0,0.00031941,2]
[381501734,1756239043848,-500.0,0.00031941,2]
[381501735,1756239043858,-500.0,0.00031941,2]
[381501736,1756239043867,-500.0,0.00031941,2]
[381501737,1756239043877,-500.0,0.00031941,2]
[381501738,1756239043887,-500.0,0.00031941,2]
[381501739,1756239043897,-500.0,0.00031941,2]
[381501740,1756239043906,-500.0,0.00031941,2]
[381501741,1756239043915,-389.19287169,0.00031941,2]
[381501742,1756239043925,-500.0,0.00031943,2]
[381501743,1756239043934,-151.58853822,0.00031943,2]
[381501744,1756239043943,-500.0,0.00031943,2]
[381501745,1756239043954,-151.0,0.00031943,2]
[381501746,1756239043964,-151.0,0.00031943,2]
[381501747,1756239043974,-198.0,0.00031943,2]
[381501748,1756239043984,-301.999998,0.00031943,2]
[381501749,1756239043994,-198.0,0.00031943,2]
[381501750,1756239044009,-487.0,0.00031943,2]
[381501751,1756239044018,-202.31733087,0.00031943,2]
[381501752,1756239044028,-500.0,0.00031943,2]
[381501753,1756239044037,-151.0,0.00031943,2]
[381501754,1756239044049,-151.0,0.00031943,2]
[381501755,1756239044058,-151.0,0.00031943,2]
[381501756,1756239044068,-151.54982774,0.00031943,2]
[381501757,1756239044079,-500.0,0.00031943,2]
[381501759,1756239044089,-189.84344737,0.00031943,2]
[381501761,1756239044098,-151.0,0.00031943,2]
[381501762,1756239044108,-500.0,0.00031943,2]
[381501763,1756239044117,-160.0,0.00031953,2]
[381501764,1756239044126,-693.04035376,0.00031986,17]
[381501765,1756239044136,-39303.17,0.00032,7]
[381501766,1756239044145,-500.0,0.00032217,2]
[381501767,1756239044155,-500.0,0.00032217,2]
[381501768,1756239044165,-152.23258547,0.00032217,2]
[381501769,1756239044174,-151.0,0.00032217,2]
[381501770,1756239044184,-487.0,0.00032217,2]
[381501771,1756239044193,-500.0,0.00032217,2]
[381501772,1756239044203,-151.0,0.00032217,2]
[381501773,1756239044212,-151.0,0.00032217,2]
[381501774,1756239044221,-500.0,0.00032217,2]
[381501775,1756239044230,-151.0,0.00032217,2]
[381501776,1756239044239,-500.0,0.00032217,2]
[381501777,1756239044248,-500.0,0.00032273,5]
[381501778,1756239044258,-154.82107977,0.00032273,5]
[381501779,1756239044267,-500.0,0.00032273,2]
[381501780,1756239044276,-5039.69206943,0.0003229,2]
[381501781,1756239044286,-379.78823236,0.0003229,2]
[381501782,1756239044295,-3104.05,0.000323,7]
[381501783,1756239044305,-160.0,0.000323,7]
[381501784,1756239044314,-199.52627049,0.00032491,2]
[381501785,1756239044324,-151.0,0.00032491,2]
[381501786,1756239044333,-151.0,0.00032491,2]
[381501787,1756239044342,-487.0,0.00032491,2]
[381501788,1756239044352,-500.0,0.00032491,2]
[381501789,1756239044361,-211.98158781,0.00032491,2]
[381501790,1756239044371,-151.0,0.00032491,2]
[381501791,1756239044380,-255.0,0.00032491,2]
[381501792,1756239044392,-151.0,0.00032491,2]
[381501793,1756239044401,-456.5387549,0.00032491,2]
[381501794,1756239044411,-260.0,0.00032501,2]
[381501795,1756239044420,-151.0,0.00032765,2]
[381501796,1756239044430,-487.0,0.00032765,2]
[381501797,1756239044439,-151.0,0.00032765,2]
[381501798,1756239044448,-151.0,0.00032765,2]
[381501799,1756239044458,-223.03061618,0.00032765,2]
[381501800,1756239044467,-500.0,0.00032821,5]
[381501801,1756239044478,-1000.0,0.00032821,2]
[381501802,1756239044487,-194.72792766,0.00032858,2]
[381501803,1756239044496,-151.0,0.00032858,2]
[381501804,1756239044506,-151.0,0.00032858,2]
[381501805,1756239044515,-151.0,0.00032858,2]
[381501806,1756239044524,-1492.34926823,0.00032858,2]
[381501807,1756239044533,-151.0,0.00032858,2]
[381501808,1756239044542,-151.0,0.00032858,2]
[381501809,1756239044554,-151.0,0.00032858,2]
[381501810,1756239044563,-151.0,0.00032858,2]
[381501811,1756239044573,-151.0,0.00032858,2]
[381501812,1756239044582,-151.0,0.00032858,2]
[381501813,1756239044591,-151.0,0.00032858,2]
[381501814,1756239044600,-151.0,0.00032858,2]
[381501815,1756239044610,-151.0,0.00032858,2]
[381501816,1756239044619,-151.0,0.00032858,2]
[381501817,1756239044629,-200.0,0.00032889,120]
[381501818,1756239044640,-500.0,0.00032973,5]
[381501819,1756239044649,-500.0,0.00032973,5]
[381501820,1756239044659,-2313.48,0.00033,7]
[381501821,1756239044668,-166.0,0.00033,14]
[381501822,1756239044678,-151.0,0.00033039,2]
[381501823,1756239044687,-487.0,0.00033039,2]
[381501824,1756239044696,-198.0,0.00033039,2]
[381501825,1756239044705,-360.0,0.00033049,2]
[381501826,1756239044715,-389.432907,0.00033165,2]
[381501827,1756239044724,-245.0,0.00033313,2]
[381501828,1756239044734,-487.0,0.00033313,2]
[381501829,1756239044744,-151.0,0.00033346,2]
[381501830,1756239044754,-151.0,0.00033346,2]
[381501831,1756239044763,-151.0,0.00033346,2]
[381501832,1756239044772,-151.0,0.00033346,2]
[381501833,1756239044781,-151.0,0.00033346,2]
[381501834,1756239044791,-151.0,0.00033346,2]
[381501835,1756239044800,-151.0,0.00033346,2]
[381501836,1756239044810,-151.95767776,0.00033346,2]
[381501837,1756239044819,-151.0,0.00033346,2]
[381501838,1756239044828,-151.0,0.00033346,2]
[381501839,1756239044838,-153.0,0.00033357,2]
[381501840,1756239044847,-153.0,0.00033357,2]
[381501841,1756239044856,-153.0,0.00033357,2]
[381501842,1756239044865,-153.0,0.00033357,2]
[381501843,1756239044875,-1500.0,0.00033368,2]
[381501844,1756239044884,-168.0,0.00033397,2]
[381501845,1756239044893,-1856.10952612,0.00033537,2]
[381501846,1756239044903,-487.0,0.00033587,2]
[381501847,1756239044913,-460.0,0.00033597,2]
[381501848,1756239044922,-5039.69206943,0.0003361,2]
[381501849,1756239044931,-379.78823236,0.0003361,2]
[381501850,1756239044941,-151.0,0.0003362,2]
[381501851,1756239044951,-151.0,0.0003362,2]
[381501852,1756239044960,-151.0,0.0003362,2]
[381501853,1756239044970,-151.0,0.0003362,2]
[381501854,1756239044980,-151.0,0.0003362,2]
[381501855,1756239044990,-152.77351297,0.0003362,2]
[381501856,1756239045003,-151.0,0.0003362,2]
[381501857,1756239045018,-151.0,0.0003362,2]
[381501858,1756239045028,-500.0,0.00033673,5]
[381501859,1756239045037,-500.0,0.00033673,5]
[381501860,1756239045048,-500.0,0.00033673,2]
[381501861,1756239045057,-27482.7117237,0.00033699,2]
[381501862,1756239045066,-693.04035376,0.00033712,21]
[381501863,1756239045077,-487.0,0.00033861,2]
[381501864,1756239045087,-151.0,0.00033894,2]
[381501865,1756239045096,-151.0,0.00033894,2]
[381501866,1756239045105,-151.0,0.00033894,2]
[381501867,1756239045115,-39303.17,0.000339,14]
[381501868,1756239045124,-152.786777,0.00033916,5]
[381501869,1756239045133,-1784.86288847,0.00033916,2]
[381501870,1756239045142,-5000.0,0.00033992,4]
[381501871,1756239045151,-487.0,0.00034135,2]
[381501872,1756239045160,-560.0,0.00034145,2]
[381501873,1756239045169,-198.0,0.00034168,2]
[381501874,1756239045178,-151.0,0.00034168,2]
[381501875,1756239045187,-5039.69206943,0.0003419,2]
[381501876,1756239045196,-379.78823236,0.0003419,2]
[381501877,1756239045206,-201.93286099,0.00034227,2]
[381501878,1756239045215,-3104.05,0.000343,7]
[381501879,1756239045224,-160.418352,0.00034302,2]
[381501880,1756239045234,-152.786777,0.00034392,2]
[381501881,1756239045243,-487.0,0.00034409,2]
[381501882,1756239045252,-151.0,0.00034442,2]
[381501883,1756239045261,-152.786777,0.00034476,20]
[381501884,1756239045271,-263.005784,0.00034521,120]
[381501885,1756239045280,-167.0,0.00034521,30]
[381501886,1756239045289,-487.0,0.00034683,2]
[381501887,1756239045299,-673.69999716,0.00034692,2]
[381501888,1756239045308,-660.0,0.00034693,2]
[381501889,1756239045317,-198.0,0.00034716,2]
[381501890,1756239045326,-4753.74987255,0.00034898,2]
[381501891,1756239045335,-487.0,0.00034957,2]
[381501892,1756239045345,-151.0,0.00035,15]
[381501893,1756239045354,-152.786777,0.00035,7]
[381501894,1756239045363,-2313.48,0.000351,7]
[381501895,1756239045372,-487.0,0.00035231,2]
[381501896,1756239045381,-760.0,0.00035241,2]
[381501897,1756239045391,-217.18350301,0.0003526,7]
[381501898,1756239045400,-39303.17,0.000353,14]
[381501899,1756239045410,-5039.69206943,0.00035379,3]
[381501900,1756239045419,-379.78823236,0.00035379,3]
[381501901,1756239045428,-974.0,0.00035389,2]
[381501902,1756239045437,-2156.0,0.00035389,2]
[381501903,1756239045447,-638.0,0.00035389,2]
[381501904,1756239045456,-693.04035376,0.00035439,24]
[381501905,1756239045465,-150.0,0.00035473,5]
[381501906,1756239045474,-150.0,0.00035473,5]
[381501907,1756239045484,-158.0,0.000355,120]
[381501908,1756239045494,-487.0,0.00035505,2]
[381501909,1756239045504,-209.40437684,0.00035596,2]
[381501910,1756239045514,-160.0,0.00035606,3]
[381501911,1756239045523,-160.0,0.00035606,3]
[381501912,1756239045532,-5039.69206943,0.00035606,3]
[381501913,1756239045542,-379.78823236,0.00035606,3]
[381501914,1756239045551,-500.0,0.00035616,7]
[381501915,1756239045560,-500.0,0.00035616,7]
[381501916,1756239045569,-500.0,0.00035616,7]
[381501917,1756239045579,-500.0,0.00035616,7]
[381501918,1756239045588,-500.0,0.00035616,7]
[381501919,1756239045597,-500.0,0.00035616,7]
[381501920,1756239045606,-500.0,0.00035616,7]
[381501921,1756239045616,-500.0,0.00035616,7]
[381501922,1756239045625,-500.0,0.00035616,7]
[381501923,1756239045634,-500.0,0.00035616,7]
[381501924,1756239045644,-500.0,0.00035616,7]
[381501925,1756239045653,-500.0,0.00035616,7]
[381501926,1756239045662,-500.0,0.00035616,7]
[381501927,1756239045671,-205.00208865,0.00035616,7]
[381501928,1756239045681,-500.0,0.00035616,7]
[381501929,1756239045690,-500.0,0.00035616,7]
[381501930,1756239045699,-500.0,0.00035616,7]
[381501931,1756239045708,-500.0,0.00035616,7]
[381501932,1756239045718,-500.0,0.00035616,7]
[381501933,1756239045727,-500.0,0.00035616,7]
[381501934,1756239045736,-500.0,0.00035616,7]
[381501935,1756239045746,-500.0,0.00035616,7]
[381501936,1756239045755,-500.0,0.00035616,7]
[381501937,1756239045765,-500.0,0.00035616,7]
[381501939,1756239045774,-500.0,0.00035616,7]
[381501940,1756239045784,-500.0,0.00035616,7]
[381501941,1756239045793,-500.0,0.00035616,7]
[381501942,1756239045803,-500.0,0.00035616,7]
[381501943,1756239045812,-500.0,0.00035616,7]
[381501944,1756239045821,-500.0,0.00035616,7]
[381501946,1756239045830,-500.0,0.00035616,7]
[381501947,1756239045839,-500.0,0.00035616,7]
[381501948,1756239045848,-500.0,0.00035616,7]
[381501949,1756239045858,-500.0,0.00035616,7]
[381501950,1756239045866,-178.9548242,0.00035616,2]
[381501951,1756239045875,-160.0,0.0003562,7]
[381501952,1756239045885,-232.53539143,0.000357,3]
[381501953,1756239045894,-152.786777,0.00035716,5]
[381501954,1756239045903,-487.0,0.00035779,2]
[381501955,1756239045912,-860.0,0.00035789,2]
[381501956,1756239045921,-3104.05,0.000358,7]
[381501957,1756239045931,-1856.10952612,0.00035905,2]
[381501958,1756239045940,-152.786777,0.00036,60]
[381501959,1756239045949,-250.0,0.00036021,5]
[381501960,1756239045959,-300.0,0.00036021,5]
[381501961,1756239045968,-217.18350301,0.0003605,3]
[381501962,1756239045977,-487.0,0.00036053,2]
[381501964,1756239045987,-151.0,0.000362,15]
[381501966,1756239045997,-487.0,0.00036327,2]
[381501968,1756239046010,-960.0,0.00036337,2]
[381501969,1756239046019,-350.0,0.00036568,5]
[381501970,1756239046029,-300.0,0.00036568,5]
[381501971,1756239046038,-487.0,0.00036601,2]
[381501973,1756239046049,-216.09257821,0.00036654,2]
[381501975,1756239046058,-160.0,0.00036655,2]
[381501976,1756239046067,-232.53539143,0.00036658,2]
[381501977,1756239046077,-195.869,0.00036709,2]
[381501978,1756239046086,-202.411,0.00036709,2]
[381501979,1756239046096,-220.354,0.00036709,2]
[381501980,1756239046105,-152.786777,0.00036729,7]
[381501981,1756239046114,-39303.17,0.000368,14]
[381501982,1756239046123,-152.786777,0.00036854,2]
[381501983,1756239046132,-487.0,0.00036875,2]
[381501984,1756239046141,-1060.0,0.00036884,2]
[381501986,1756239046151,-152.786777,0.00036956,20]
[381501987,1756239046160,-217.15233878,0.00036965,2]
[381501988,1756239046170,-5039.69206943,0.0003699,3]
[381501989,1756239046180,-379.78823236,0.0003699,3]
[381501990,1756239046189,-151.0,0.000371,13]
[381501991,1756239046200,-2313.48,0.000371,7]
[381501992,1756239046210,-450.0,0.00037116,5]
[381501993,1756239046220,-487.0,0.00037148,2]
[381501994,1756239046229,-693.04035376,0.00037166,28]
[381501995,1756239046238,-151.0,0.0003719,30]
[381501996,1756239046248,-151.0,0.0003719,30]
[381501997,1756239046257,-151.0,0.000374,16]
[381501998,1756239046267,-3104.05,0.000374,7]
[381501999,1756239046277,-487.0,0.00037422,2]
[381502000,1756239046286,-774.6827728,0.00037431,30]
[381502002,1756239046296,-394.4629129,0.00037431,30]
[381502003,1756239046306,-663.2161808,0.00037432,2]
[381502005,1756239046315,-151.0,0.00037464,30]
[381502006,1756239046324,-151.0,0.00037464,30]
[381502008,1756239046333,-152.786777,0.00037516,5]
[381502010,1756239046343,-581.2274076,0.00037568,30]
[381502011,1756239046351,-153.0,0.00037568,30]
[381502013,1756239046361,-1177.6450248,0.00037568,30]
[381502015,1756239046370,-153.0,0.00037568,30]
[381502017,1756239046380,-161.0922331,0.00037568,30]
[381502019,1756239046390,-153.9935756,0.00037568,30]
[381502021,1756239046399,-294.3576271,0.00037568,30]
[381502023,1756239046408,-161.0922331,0.00037568,30]
[381502025,1756239046418,-673.69999716,0.00037638,2]
[381502027,1756239046427,-550.0,0.00037664,5]
[381502029,1756239046436,-487.0,0.00037696,2]
[381502031,1756239046446,-160.418352,0.00037727,2]
[381502032,1756239046455,-151.0,0.00037738,30]
[381502033,1756239046464,-160.0,0.00037928,3]
[381502034,1756239046474,-487.0,0.0003797,2]
[381502035,1756239046483,-198.0,0.00038012,30]
[381502036,1756239046492,-482.66998372,0.00038212,5]
[381502037,1756239046501,-502.68110039,0.00038244,2]
[381502038,1756239046510,-1856.10952612,0.00038274,2]
[381502039,1756239046520,-151.0,0.000383,18]
[381502040,1756239046529,-151.0,0.000383,30]
[381502041,1756239046538,-151.0,0.000383,30]
[381502042,1756239046547,-151.0,0.000383,30]
[381502043,1756239046556,-225.18697532,0.00038334,2]
[381502044,1756239046565,-250.0,0.00038356,2]
[381502045,1756239046574,-533.21,0.00038356,120]
[381502047,1756239046585,-380.72074823,0.00038356,120]
[381502049,1756239046594,-5039.69206943,0.0003838,3]
[381502051,1756239046603,-379.78823236,0.0003838,3]
[381502053,1756239046613,-974.0,0.00038389,2]
[381502055,1756239046622,-2156.0,0.00038389,2]
[381502057,1756239046632,-638.0,0.00038389,2]
[381502059,1756239046642,-161.0922331,0.0003839,30]
[381502060,1756239046651,-161.0922331,0.0003839,30]
[381502062,1756239046661,-161.0922331,0.0003839,30]
[381502063,1756239046670,-161.0922331,0.0003839,30]
[381502064,1756239046680,-161.0922331,0.0003839,30]